fUST/lending_fUST_20241230
["ID","MTS","AMOUNT","RATE_DAILY","PERIOD"]
[347121627,1735511432672,-224.95180679,0.00013972,2]
[347121628,1735511432682,-500.0,0.00013972,2]
[347121629,1735511432693,-300.0,0.00013972,2]
[347121631,1735511432702,-500.0,0.00013972,2]
[347121633,1735511432712,-5050.49527076,0.00013973,2]
[347121634,1735511432835,-4667.04398835,0.00013973,2]
[347121691,1735511438550,-4926.85,0.00013973,2]
[347121700,1735511438633,-43725.43243979,0.00013973,2]
[347121702,1735511438644,-500.0,0.00014246,2]
[347121704,1735511438660,-500.0,0.00014246,2]
[347121706,1735511438670,-500.0,0.0001452,2]
[347121708,1735511438679,-500.0,0.0001452,2]
[347121710,1735511438688,-500.0,0.00014794,2]
[347121712,1735511438699,-500.0,0.00014794,2]
[347121714,1735511438708,-500.0,0.00015068,2]
[347121716,1735511438719,-500.0,0.00015068,2]
[347121718,1735511438729,-420.0,0.00015307,2]
[347121720,1735511438738,-500.0,0.00015342,2]
[347121722,1735511438747,-500.0,0.00015342,2]
[347121723,1735511438756,-175.29562989,0.00015615,2]
[347121726,1735511438766,-500.0,0.00015616,2]
[347121730,1735511438776,-331.91369346,0.00015616,2]
[347121733,1735511438786,-500.0,0.0001589,2]
[347121736,1735511438796,-500.0,0.00016164,2]
[347121738,1735511438805,-1312.48004024,0.0001643,2]
[347121741,1735511438815,-1936.15870154,0.0001643,2]
[347121744,1735511438825,-153.5139799,0.00016438,2]
[347121747,1735511438834,-334.91011144,0.00016438,2]
[347121750,1735511438843,-587.0,0.0001677,2]
[347121753,1735511438853,-18764.15074802,0.00016889,2]
[347121756,1735511438862,-153.0,0.00016986,2]
[347121759,1735511438871,-153.0,0.00016986,2]
[347121761,1735511438881,-153.0,0.00016986,2]
[347121763,1735511438890,-214.3278492,0.00016986,2]
[347121765,1735511438899,-153.0,0.00016986,2]
[347121767,1735511438908,-153.0,0.00016986,2]
[347121768,1735511438918,-153.0,0.00016986,2]
[347121769,1735511438928,-153.0,0.00016986,2]
[347121770,1735511438936,-214.3278492,0.00016986,2]
[347121771,1735511438946,-153.0,0.00016986,2]
[347121772,1735511438955,-153.0,0.00016986,2]
[347121773,1735511438965,-153.0,0.00016986,2]
[347121774,1735511438974,-214.3278492,0.00016986,2]
[347121775,1735511438983,-266.9382312,0.00016986,2]
[347121776,1735511438992,-214.3278492,0.00016986,2]
[347121777,1735511439001,-214.3278492,0.00016986,2]
[347121778,1735511439011,-153.5094505,0.00016986,2]
[347121779,1735511439020,-229.8705029,0.00016986,2]
[347121780,1735511439030,-153.5094505,0.00016986,2]
[347121781,1735511439039,-153.5094505,0.00016986,2]
[347121782,1735511439048,-153.5094505,0.00016986,2]
[347121783,1735511439058,-153.5094505,0.00016986,2]
[347121784,1735511439068,-396.2504255,0.00016986,2]
[347121786,1735511439079,-412.49456257,0.00016987,2]
[347121788,1735511439088,-500.0,0.00016987,2]
[347121790,1735511439097,-500.0,0.00016987,2]
[347121792,1735511439106,-500.0,0.00016987,2]
[347121793,1735511439115,-533.45,0.00016987,2]
[347121795,1735511439124,-500.0,0.00016987,2]
[347121797,1735511439133,-500.0,0.00016987,2]
[347121799,1735511439143,-500.0,0.00016987,2]
[347121801,1735511439151,-500.0,0.00016987,2]
[347121803,1735511439160,-500.0,0.00016987,2]
[347121805,1735511439169,-500.0,0.00016988,2]
[347121807,1735511439179,-500.0,0.00016988,2]
[347121809,1735511439188,-500.0,0.00016988,2]
[347121811,1735511439197,-500.0,0.00016988,2]
[347121813,1735511439206,-500.0,0.00016988,2]
[347121815,1735511439215,-500.0,0.00016988,2]
[347121817,1735511439224,-500.0,0.00016988,2]
[347121819,1735511439234,-500.0,0.00016988,2]
[347121821,1735511439243,-588.19,0.00016988,2]
[347121823,1735511439252,-424.82,0.00016988,2]
[347121825,1735511439261,-500.0,0.00016988,2]
[347121827,1735511439270,-500.0,0.00016988,2]
[347121829,1735511439280,-6584.98,0.00016988,2]
[347121831,1735511439289,-500.0,0.00016988,2]
[347121833,1735511439298,-500.0,0.00016988,2]
[347121835,1735511439307,-500.0,0.00016989,2]
[347121837,1735511439316,-502.84854341,0.00016989,2]
[347121839,1735511439328,-504.75108553,0.00016989,2]
[347121841,1735511439338,-503.55708668,0.00016989,2]
[347121843,1735511439346,-502.35674735,0.00016989,2]
[347121845,1735511439355,-502.11764655,0.00016989,2]
[347121847,1735511439364,-444.8936842,0.00016989,2]
[347121849,1735511439373,-500.75038015,0.00016989,2]
[347121851,1735511439383,-505.3142385,0.00016989,2]
[347121853,1735511439392,-501.58592017,0.00016989,2]
[347121855,1735511439401,-501.64212445,0.00016989,2]
[347121857,1735511439411,-502.68727643,0.00016989,2]
[347121859,1735511439420,-501.19444661,0.00016989,2]
[347121861,1735511439430,-502.42701329,0.00016989,2]
[347121863,1735511439439,-505.14597039,0.00016989,2]
[347121865,1735511439448,-504.2968186,0.00016989,2]
[347121867,1735511439457,-503.03156066,0.00016989,2]
[347121869,1735511439466,-503.46576888,0.00016989,2]
[347121871,1735511439475,-503.50870849,0.00016989,2]
[347121873,1735511439484,-504.19776558,0.00016989,2]
[347121874,1735511439494,-503.22735779,0.00016989,2]
[347121876,1735511439503,-508.56608196,0.00016989,2]
[347121878,1735511439512,-507.87866054,0.00016989,2]
[347121881,1735511439522,-503.77901429,0.00016989,2]
[347121883,1735511439531,-506.37409631,0.00016989,2]
[347121885,1735511439540,-501.57398472,0.00016989,2]
[347121886,1735511439549,-505.6889392,0.00016989,2]
[347121888,1735511439559,-501.08769909,0.00016989,2]
[347121890,1735511439568,-509.62497067,0.00016989,2]
[347121892,1735511439581,-504.17401231,0.00016989,2]
[347121894,1735511439593,-505.37461683,0.00016989,2]
[347121896,1735511439602,-505.02862082,0.00016989,2]
[347121898,1735511439611,-501.96437622,0.00016989,2]
[347121900,1735511439621,-516.07636182,0.00016989,2]
[347121902,1735511439631,-505.53260887,0.00016989,2]
[347121904,1735511439639,-507.06642463,0.00016989,2]
[347121906,1735511439653,-503.76193013,0.00016989,2]
[347121908,1735511439663,-507.76017269,0.00016989,2]
[347121910,1735511439672,-506.03974183,0.00016989,2]
[347121912,1735511439682,-503.98585372,0.00016989,2]
[347121915,1735511439693,-609.98882252,0.00016989,2]
[347121916,1735511439702,-507.25396928,0.00016989,2]
[347121919,1735511439712,-501.2891842,0.00016989,2]
[347121920,1735511439722,-502.76494433,0.00016989,2]
[347121923,1735511439732,-581.4023727,0.00016989,2]
[347121925,1735511439741,-354.0739151,0.00016989,2]
[347121927,1735511439750,-507.4433533,0.00016989,2]
[347121928,1735511439760,-503.21971003,0.00016989,2]
[347121930,1735511439770,-503.14614762,0.00016989,2]
[347121933,1735511439780,-501.46889827,0.00016989,2]
[347121935,1735511439790,-510.28011879,0.00016989,2]
[347121937,1735511439800,-502.87896353,0.00016989,2]
[347121939,1735511439811,-502.05298476,0.00016989,2]
[347121941,1735511439820,-504.7523537,0.00016989,2]
[347121943,1735511439830,-501.28592186,0.00016989,2]
[347121944,1735511439839,-502.5410955,0.00016989,2]
[347121946,1735511439848,-504.84352437,0.00016989,2]
[347121947,1735511439858,-504.61169402,0.00016989,2]
[347121949,1735511439868,-509.68267112,0.00016989,2]
[347121950,1735511439877,-502.55843687,0.00016989,2]
[347121952,1735511439887,-506.70259574,0.00016989,2]
[347121954,1735511439896,-162.78630853,0.00016989,2]
[347121955,1735511439906,-501.73719282,0.00016989,2]
[347121958,1735511439915,-506.53766045,0.00016989,2]
[347121959,1735511439924,-502.57302151,0.00016989,2]
[347121961,1735511439933,-505.11018647,0.00016989,2]
[347121962,1735511439942,-502.8024777,0.00016989,2]
[347121965,1735511439952,-504.39487205,0.00016989,2]
[347121966,1735511439961,-502.44024829,0.00016989,2]
[347121969,1735511439971,-501.90484968,0.00016989,2]
[347121970,1735511439980,-508.28729545,0.00016989,2]
[347121972,1735511439989,-507.72062285,0.00016989,2]
[347121973,1735511439998,-508.17629953,0.00016989,2]
[347121975,1735511440008,-504.1854169,0.00016989,2]
[347121976,1735511440017,-501.10685675,0.00016989,2]
[347121978,1735511440027,-503.81086254,0.00016989,2]
[347121979,1735511440037,-214.27216354,0.00016989,2]
[347121982,1735511440046,-500.0,0.00016989,2]
[347121985,1735511440056,-501.43282737,0.00016989,2]
[347121987,1735511440066,-503.79699481,0.00016989,2]
[347121990,1735511440077,-501.2393322,0.00016989,2]
[347121993,1735511440086,-100000.0,0.0001699,7]
[347121994,1735511440096,-352.4553754,0.00017,2]
[347121997,1735511440106,-153.5094505,0.00017,2]
[347122001,1735511440115,-352.4553754,0.00017,2]
[347122004,1735511440125,-213.8477522,0.00017,2]
[347122007,1735511440134,-153.5094505,0.00017,2]
[347122010,1735511440144,-352.4553754,0.00017,2]
[347122012,1735511440153,-153.5094505,0.00017,2]
[347122015,1735511440162,-352.4553754,0.00017,2]
[347122017,1735511440172,-352.4553754,0.00017,2]
[347122019,1735511440181,-153.5094505,0.00017,2]
[347122031,1735511440191,-397.3333249,0.00017,2]
[347122033,1735511440286,-5758.3489117,0.00017,2]
[347122035,1735511440296,-500.0,0.00017261,2]
[347122036,1735511440305,-500.0,0.00017261,2]
[347122038,1735511440315,-500.0,0.00017261,2]
[347122040,1735511440325,-500.0,0.00017261,2]
[347122041,1735511440336,-500.0,0.00017261,2]
[347122043,1735511440345,-611.14983595,0.00017261,2]
[347122045,1735511440354,-250.7935126,0.00017262,2]
[347122046,1735511440363,-500.0,0.00017262,2]
[347122048,1735511440373,-318.58,0.00017262,2]
[347122049,1735511440383,-500.0,0.00017262,2]
[347122051,1735511440393,-500.0,0.00017262,2]
[347122053,1735511440404,-500.0,0.00017262,2]
[347122055,1735511440414,-6584.98,0.00017262,2]
[347122056,1735511440424,-500.0,0.00017262,2]
[347122058,1735511440433,-223.266,0.00017296,2]
[347122060,1735511440443,-500.0,0.00017535,2]
[347122061,1735511440453,-500.0,0.00017535,2]
[347122063,1735511440462,-500.0,0.00017535,2]
[347122065,1735511440472,-500.0,0.00017535,2]
[347122066,1735511440482,-500.0,0.00017536,2]
[347122068,1735511440492,-500.0,0.00017536,2]
[347122070,1735511440502,-500.0,0.00017536,2]
[347122071,1735511440512,-500.0,0.00017536,2]
[347122073,1735511440522,-6584.98,0.00017536,2]
[347122075,1735511440531,-500.0,0.00017536,2]
[347122076,1735511440541,-84738.08451483,0.00017777,2]
[347122078,1735511440551,-500.0,0.00017809,2]
[347122080,1735511440561,-500.0,0.00017809,2]
[347122081,1735511440572,-308.12893476,0.00017809,2]
[347122083,1735511440581,-500.0,0.00017809,2]
[347122085,1735511440591,-500.0,0.0001781,2]
[347122086,1735511440601,-500.0,0.0001781,2]
[347122088,1735511440611,-500.0,0.0001781,2]
[347122090,1735511440621,-500.0,0.0001781,2]
[347122091,1735511440630,-6584.98,0.0001781,2]
[347122093,1735511440640,-557.68,0.0001781,2]
[347122095,1735511440652,-500.0,0.00018,2]
[347122096,1735511440665,-3269.07607116,0.00018,2]
[347122098,1735511440675,-500.0,0.00018083,2]
[347122100,1735511440684,-500.0,0.00018083,2]
[347122101,1735511440695,-500.0,0.00018083,2]
[347122103,1735511440704,-500.0,0.00018084,2]
[347122105,1735511440714,-500.0,0.00018084,2]
[347122106,1735511440723,-244.85436605,0.00018084,2]
[347122108,1735511440735,-384.33944767,0.00018084,2]
[347122110,1735511440746,-6584.98,0.00018084,2]
[347122111,1735511440755,-636.53805068,0.00018171,2]
[347122113,1735511440765,-500.0,0.00018357,2]
[347122115,1735511440774,-500.0,0.00018357,2]
[347122116,1735511440784,-500.0,0.00018357,2]
[347122118,1735511440793,-500.0,0.00018358,2]
[347122119,1735511440802,-500.0,0.00018358,2]
[347122120,1735511440812,-6584.98,0.00018358,2]
[347122122,1735511440823,-823.0,0.00018373,2]
[347122124,1735511440834,-500.0,0.00018631,2]
[347122125,1735511440843,-500.0,0.00018631,2]
[347122126,1735511440853,-500.0,0.00018631,2]
[347122128,1735511440863,-500.0,0.00018632,2]
[347122129,1735511440873,-500.0,0.00018632,2]
[347122131,1735511440883,-6584.98,0.00018632,2]
[347122133,1735511440893,-1230.36432086,0.000189,2]
[347122134,1735511440904,-500.0,0.00018905,2]
[347122136,1735511440914,-437.05099036,0.00018905,2]
[347122137,1735511440924,-281.1406022,0.00018905,2]
[347122139,1735511440934,-500.0,0.00018906,2]
[347122140,1735511440944,-500.0,0.00018906,2]
[347122142,1735511440954,-6584.98,0.00018906,2]
[347122144,1735511440964,-504.19193009,0.00019068,2]
[347122145,1735511440974,-500.0,0.00019068,2]
[347122147,1735511440984,-503.11511899,0.00019068,2]
[347122149,1735511440994,-500.0,0.00019068,2]
[347122150,1735511441003,-506.78715455,0.00019068,2]
[347122152,1735511441012,-509.49118221,0.00019068,2]
[347122153,1735511441022,-508.12072627,0.00019068,2]
[347122155,1735511441031,-508.5517399,0.00019068,2]
[347122157,1735511441040,-500.0,0.00019068,2]
[347122159,1735511441050,-500.0,0.00019068,2]
[347122161,1735511441060,-500.0,0.00019068,2]
[347122163,1735511441069,-500.0,0.00019068,2]
[347122165,1735511441080,-574.73373887,0.00019068,2]
[347122167,1735511441089,-500.0,0.00019068,2]
[347122168,1735511441099,-500.0,0.00019068,2]
[347122169,1735511441108,-500.0,0.00019068,2]
[347122170,1735511441117,-500.0,0.00019068,2]
[347122171,1735511441126,-500.0,0.00019068,2]
[347122172,1735511441134,-500.0,0.00019068,2]
[347122173,1735511441144,-473.57690253,0.00019079,2]
[347122174,1735511441152,-500.0,0.00019178,2]
[347122175,1735511441162,-467.84112293,0.00019178,2]
[347122176,1735511441171,-500.0,0.00019178,3]
[347122177,1735511441182,-500.0,0.00019178,3]
[347122178,1735511441191,-301.78802746,0.00019178,3]
[347122179,1735511441200,-500.0,0.00019179,2]
[347122180,1735511441210,-500.0,0.0001918,2]
[347122181,1735511441218,-500.0,0.0001918,2]
[347122182,1735511441227,-6584.98,0.0001918,2]
[347122183,1735511441236,-7583.96786701,0.00019205,2]
[347122184,1735511441246,-5000.0,0.00019205,2]
[347122185,1735511441254,-5000.0,0.00019205,2]
[347122186,1735511441263,-500.0,0.00019342,2]
[347122187,1735511441272,-500.0,0.00019342,2]
[347122188,1735511441281,-500.0,0.00019342,2]
[347122189,1735511441290,-500.0,0.00019342,2]
[347122190,1735511441299,-500.0,0.00019342,2]
[347122191,1735511441308,-500.0,0.00019342,2]
[347122192,1735511441318,-368.8,0.00019342,2]
[347122193,1735511441330,-633.2162637,0.00019342,2]
[347122195,1735511441339,-500.0,0.00019342,2]
[347122196,1735511441348,-500.0,0.00019342,2]
[347122197,1735511441358,-500.0,0.00019342,2]
[347122199,1735511441367,-500.0,0.00019453,2]
[347122200,1735511441376,-500.0,0.00019454,2]
[347122202,1735511441386,-179.63792449,0.00019454,2]
[347122204,1735511441395,-6584.98,0.00019454,2]
[347122206,1735511441405,-500.0,0.00019616,2]
[347122208,1735511441414,-500.0,0.00019616,2]
[347122210,1735511441424,-500.0,0.00019616,2]
[347122212,1735511441433,-500.0,0.00019616,2]
[347122214,1735511441443,-500.0,0.00019616,2]
[347122216,1735511441452,-500.0,0.00019616,2]
[347122218,1735511441461,-500.0,0.00019616,2]
[347122220,1735511441471,-500.0,0.00019616,2]
[347122223,1735511441481,-569.50751627,0.00019699,2]
[347122225,1735511441491,-500.0,0.00019727,2]
[347122227,1735511441500,-500.0,0.00019728,2]
[347122229,1735511441510,-6584.98,0.00019728,2]
[347122231,1735511441519,-517.289,0.0001979,2]
[347122233,1735511441529,-5164.75756255,0.00019803,2]
[347122235,1735511441538,-569.50751627,0.00019808,2]
[347122237,1735511441547,-500.0,0.0001989,2]
[347122239,1735511441557,-500.0,0.0001989,2]
[347122241,1735511441566,-500.0,0.0001989,2]
[347122243,1735511441577,-500.0,0.0001989,2]
[347122245,1735511441587,-551.3309867,0.0001989,2]
[347122247,1735511441596,-500.0,0.0001989,2]
[347122249,1735511441605,-500.0,0.0001989,2]
[347122251,1735511441615,-500.0,0.0001989,2]
[347122253,1735511441624,-569.50751627,0.0001989,2]
[347122255,1735511441634,-269.73752714,0.00019973,2]
[347122257,1735511441644,-367.46679017,0.00019997,2]
[347122259,1735511441656,-500.0,0.00019997,2]
[347122261,1735511441666,-500.0,0.00019997,2]
[347122263,1735511441675,-500.0,0.00019997,2]
[347122265,1735511441684,-500.0,0.00019997,2]
[347122267,1735511441693,-506.49087918,0.00019997,2]
[347122269,1735511441702,-504.15980462,0.00019997,2]
[347122270,1735511441712,-501.85199262,0.00019997,2]
[347122273,1735511441721,-500.0,0.00019997,2]
[347122274,1735511441731,-157.34541806,0.00019997,2]
[347122276,1735511441741,-501.60583812,0.00019997,2]
[347122279,1735511441751,-500.0,0.00019997,2]
[347122281,1735511441761,-500.0,0.00019997,2]
[347122283,1735511441770,-275.61587619,0.00019997,2]
[347122285,1735511441779,-500.0,0.00019997,2]
[347122286,1735511441789,-500.0,0.00019997,2]
[347122288,1735511441798,-500.0,0.00019997,2]
[347122290,1735511441808,-567.65,0.00019997,2]
[347122292,1735511441818,-500.0,0.00019998,2]
[347122295,1735511441829,-160.3462879,0.00019998,2]
[347122297,1735511441838,-148882.50140643,0.00019999,8]
[347122298,1735511441847,-6869.33049902,0.0002,2]
[347122300,1735511441857,-105639.58883161,0.0002,2]
[347122302,1735511441866,-569.50751627,0.0002,2]
[347122305,1735511441875,-2145.24909166,0.0002,30]
[347122307,1735511441885,-578829.40323231,0.0002,4]
[347122318,1735511441983,-500.0,0.00013972,2]
[347122320,1735511441993,-18148.20000002,0.0002,4]
[347122458,1735511443691,-1012.93103379,0.00019792,2]
[347122461,1735511443736,-167.69519755,0.00019792,2]
[347123558,1735511669679,500.0,0.00021091,120]
[347123574,1735512499435,190.0,0.00025,120]
[347123575,1735512577381,-741.85281877,0.00013809,2]
[347123605,1735512636481,-500.0,0.00013809,2]
[347123690,1735512638929,-58.61944323,0.00013809,2]
[347123692,1735512638938,-300.0,0.00013971,2]
[347123694,1735512638947,-500.0,0.00013972,2]
[347123696,1735512638957,-503.11511899,0.00013972,2]
[347123698,1735512638966,-500.0,0.00013972,2]
[347123700,1735512638976,-506.78715455,0.00013972,2]
[347123702,1735512638986,-509.49118221,0.00013972,2]
[347123704,1735512638995,-508.12072627,0.00013972,2]
[347123706,1735512639005,-508.5517399,0.00013972,2]
[347123708,1735512639015,-500.0,0.00013972,2]
[347123710,1735512639025,-500.0,0.00013972,2]
[347123712,1735512639035,-500.0,0.00013972,2]
[347123714,1735512639045,-500.0,0.00013972,2]
[347123716,1735512639054,-574.73373887,0.00013972,2]
[347123718,1735512639064,-500.0,0.00013972,2]
[347123720,1735512639074,-500.0,0.00013972,2]
[347123722,1735512639083,-500.0,0.00013972,2]
[347123724,1735512639093,-500.0,0.00013972,2]
[347123726,1735512639102,-500.0,0.00013972,2]
[347123728,1735512639112,-500.0,0.00013972,2]
[347123730,1735512639122,-500.0,0.00013972,2]
[347123732,1735512639132,-506.49087918,0.00013972,2]
[347123734,1735512639141,-504.15980462,0.00013972,2]
[347123736,1735512639151,-501.85199262,0.00013972,2]
[347123738,1735512639160,-157.34541806,0.00013972,2]
[347123740,1735512639170,-501.60583812,0.00013972,2]
[347123742,1735512639179,-500.0,0.00013972,2]
[347123744,1735512639188,-846.59,0.00013972,2]
[347123746,1735512639198,-500.0,0.00013972,2]
[347123748,1735512639207,-400.0,0.00013973,2]
[347123750,1735512639217,-500.0,0.00014246,2]
[347123752,1735512639227,-500.0,0.00014246,2]
[347123754,1735512639237,-500.0,0.00014246,2]
[347123756,1735512639246,-500.0,0.00014246,2]
[347123758,1735512639260,-500.0,0.00014246,2]
[347123760,1735512639269,-500.0,0.00014246,2]
[347123762,1735512639278,-368.8,0.00014246,2]
[347123765,1735512639287,-633.2162637,0.00014246,2]
[347123767,1735512639298,-500.0,0.00014246,2]
[347123768,1735512639308,-500.0,0.00014246,2]
[347123770,1735512639317,-500.0,0.00014246,2]
[347123773,1735512639327,-500.0,0.00014246,2]
[347123775,1735512639336,-500.0,0.00014246,2]
[347123777,1735512639346,-846.59,0.00014246,2]
[347123779,1735512639355,-367.46679017,0.00014246,2]
[347123781,1735512639364,-500.0,0.00014519,2]
[347123782,1735512639374,-500.0,0.00014519,2]
[347123784,1735512639383,-500.0,0.00014519,2]
[347123786,1735512639393,-500.0,0.00014519,2]
[347123788,1735512639403,-500.0,0.00014519,2]
[347123790,1735512639412,-500.0,0.00014519,2]
[347123792,1735512639423,-500.0,0.00014519,2]
[347123794,1735512639432,-9937.38,0.00014519,2]
[347123796,1735512639442,-500.0,0.00014519,2]
[347123799,1735512639451,-500.0,0.00014519,2]
[347123801,1735512639461,-500.0,0.00014519,2]
[347123802,1735512639471,-500.0,0.0001452,2]
[347123804,1735512639480,-500.0,0.0001452,2]
[347123806,1735512639489,-500.0,0.0001452,2]
[347123808,1735512639499,-500.0,0.0001452,2]
[347123810,1735512639508,-500.0,0.0001452,2]
[347123812,1735512639518,-500.0,0.0001452,2]
[347123814,1735512639527,-500.0,0.0001452,2]
[347123816,1735512639536,-500.0,0.0001452,2]
[347123818,1735512639546,-500.0,0.0001452,2]
[347123820,1735512639555,-846.59,0.0001452,2]
[347123822,1735512639565,-500.0,0.00014793,2]
[347123824,1735512639575,-500.0,0.00014793,2]
[347123826,1735512639584,-500.0,0.00014793,2]
[347123828,1735512639594,-500.0,0.00014793,2]
[347123830,1735512639603,-500.0,0.00014793,2]
[347123832,1735512639613,-500.0,0.00014793,2]
[347123834,1735512639623,-9937.38,0.00014793,2]
[347123836,1735512639632,-500.0,0.00014793,2]
[347123839,1735512639642,-500.0,0.00014793,2]
[347123840,1735512639651,-500.0,0.00014793,2]
[347123841,1735512639660,-268.41,0.00014794,2]
[347123842,1735512639669,-500.0,0.00014794,2]
[347123843,1735512639678,-500.0,0.00014794,2]
[347123844,1735512639688,-500.0,0.00014794,2]
[347123845,1735512639697,-551.3309867,0.00014794,2]
[347123846,1735512639706,-500.0,0.00014794,2]
[347123847,1735512639716,-500.0,0.00014794,2]
[347123848,1735512639726,-500.0,0.00014794,2]
[347123849,1735512639735,-500.0,0.00014794,2]
[347123850,1735512639745,-846.59,0.00014794,2]
[347123851,1735512639755,-500.0,0.00015067,2]
[347123852,1735512639764,-500.0,0.00015067,2]
[347123853,1735512639774,-500.0,0.00015067,2]
[347123854,1735512639783,-500.0,0.00015067,2]
[347123855,1735512639793,-500.0,0.00015067,2]
[347123857,1735512639802,-500.0,0.00015067,2]
[347123859,1735512639811,-9937.38,0.00015067,2]
[347123861,1735512639821,-410.06381049,0.00015067,2]
[347123863,1735512639830,-500.0,0.00015067,2]
[347123865,1735512639840,-557.68,0.00015067,2]
[347123867,1735512639849,-500.0,0.00015068,2]
[347123869,1735512639859,-500.0,0.00015068,2]
[347123871,1735512639869,-500.0,0.00015068,2]
[347123873,1735512639879,-578.13,0.00015068,2]
[347123875,1735512639889,-500.0,0.00015068,2]
[347123877,1735512639898,-500.0,0.00015068,2]
[347123879,1735512639908,-500.0,0.00015068,2]
[347123881,1735512639917,-846.59,0.00015068,2]
[347123883,1735512639926,-420.0,0.00015306,2]
[347123885,1735512639936,-500.0,0.00015341,2]
[347123887,1735512639945,-500.0,0.00015341,2]
[347123889,1735512639954,-244.85436605,0.00015341,2]
[347123891,1735512639964,-500.0,0.00015341,2]
[347123893,1735512639973,-384.33944767,0.00015341,2]
[347123895,1735512639983,-500.0,0.00015341,2]
[347123897,1735512639992,-9937.38,0.00015341,2]
[347123899,1735512640002,-500.0,0.00015341,2]
[347123901,1735512640011,-151.26,0.00015342,2]
[347123903,1735512640020,-500.0,0.00015342,2]
[347123905,1735512640030,-500.0,0.00015342,2]
[347123907,1735512640039,-500.0,0.00015342,2]
[347123909,1735512640048,-500.0,0.00015342,2]
[347123911,1735512640058,-500.0,0.00015342,2]
[347123913,1735512640067,-846.59,0.00015342,2]
[347123915,1735512640077,-500.0,0.00015615,2]
[347123917,1735512640086,-500.0,0.00015615,2]
[347123919,1735512640095,-500.0,0.00015615,2]
[347123921,1735512640104,-500.0,0.00015615,2]
[347123923,1735512640114,-9937.38,0.00015615,2]
[347123925,1735512640123,-500.0,0.00015615,2]
[347123927,1735512640132,-500.0,0.00015616,2]
[347123929,1735512640142,-500.0,0.00015616,2]
[347123931,1735512640152,-500.0,0.00015616,2]
[347123933,1735512640161,-500.0,0.00015616,2]
[347123935,1735512640170,-500.0,0.00015616,2]
[347123937,1735512640180,-846.59,0.00015616,2]
[347123939,1735512640189,-500.0,0.00015889,2]
[347123941,1735512640199,-500.0,0.00015889,2]
[347123943,1735512640208,-500.0,0.00015889,2]
[347123945,1735512640217,-500.0,0.00015889,2]
[347123948,1735512640226,-9937.38,0.00015889,2]
[347123950,1735512640235,-500.0,0.00015889,2]
[347123952,1735512640244,-500.0,0.0001589,2]
[347123954,1735512640256,-500.0,0.0001589,2]
[347123955,1735512640267,-400.74,0.0001589,2]
[347123958,1735512640276,-500.0,0.0001589,2]
[347123959,1735512640285,-500.0,0.0001589,2]
[347123961,1735512640296,-846.59,0.0001589,2]
[347123963,1735512640305,-500.0,0.00016163,2]
[347123965,1735512640314,-500.0,0.00016163,2]
[347123967,1735512640323,-500.0,0.00016163,2]
[347123969,1735512640332,-437.05099036,0.00016163,2]
[347123971,1735512640342,-9937.38,0.00016163,2]
[347123973,1735512640351,-500.0,0.00016163,2]
[347123975,1735512640360,-500.0,0.00016164,2]
[347123977,1735512640370,-621.0,0.00016164,2]
[347123979,1735512640380,-500.0,0.00016164,2]
[347123981,1735512640389,-500.0,0.00016164,2]
[347123983,1735512640399,-500.0,0.00016437,2]